bitfinex/quotes_BTCUSD_20250529
["timestamp","ask_amount","ask_price","bid_price","bid_amount"]
[1748482032057,0.40720251,107890.0,107880.0,0.53215614]
[1748482033024,0.38720251,107890.0,107880.0,0.53215614]
[1748482033462,0.38720251,107890.0,107880.0,0.54083161]
[1748482033672,0.38720251,107890.0,107880.0,0.5408316]
[1748482034099,0.38720251,107890.0,107880.0,0.53215614]
[1748482034992,0.09464251,107890.0,107880.0,0.53215614]
[1748482035652,0.09464251,107890.0,107880.0,0.54083148]
[1748482035880,0.09464251,107890.0,107880.0,0.53215614]
[1748482036108,0.46614251,107890.0,107880.0,0.50615614]
[1748482036328,0.55719646,107890.0,107880.0,0.50615614]
[1748482036779,0.54079646,107890.0,107880.0,0.50615614]
[1748482037636,0.54079646,107890.0,107880.0,0.51483382]
[1748482037871,0.54079646,107890.0,107880.0,0.42263382]
[1748482038087,0.55729646,107890.0,107880.0,0.51467386]
[1748482038654,0.55729646,107890.0,107880.0,0.51465802]
[1748482038836,0.55729646,107890.0,107880.0,0.42261802]
[1748482039039,0.55729646,107890.0,107880.0,0.51465802]
[1748482039465,0.55729646,107890.0,107880.0,0.50599614]
[1748482039723,0.55729646,107890.0,107880.0,0.51465802]
[1748482039964,0.55729646,107890.0,107880.0,0.50599614]
[1748482040135,0.53729646,107890.0,107880.0,0.51465795]
[1748482040560,0.52079646,107890.0,107880.0,0.50599614]
[1748482040785,0.50569646,107890.0,107880.0,0.51466085]
[1748482041010,0.50569646,107890.0,107880.0,0.51466089]
[1748482041452,0.41464251,107890.0,107880.0,0.51466088]
[1748482041717,0.70708251,107890.0,107880.0,0.52109614]
[1748482041951,0.70708251,107890.0,107880.0,0.52976091]
[1748482042164,0.70708251,107890.0,107880.0,0.52109614]
[1748482042330,0.70708251,107890.0,107880.0,0.50599614]
[1748482042755,0.70708251,107890.0,107880.0,0.51466264]
[1748482042885,0.70708251,107890.0,107880.0,0.51466263]
[1748482043296,0.70708251,107890.0,107880.0,0.51466381]
[1748482044110,0.70708251,107890.0,107880.0,0.50599614]
[1748482044313,0.72338251,107890.0,107880.0,0.41395614]
[1748482044527,0.73838251,107890.0,107880.0,0.51466379]
[1748482044771,0.72338251,107890.0,107880.0,0.51466466]
[1748482044975,0.72338251,107890.0,107880.0,0.50599614]
[1748482045488,0.70708251,107890.0,107880.0,0.51466465]
[1748482045703,0.70708251,107890.0,107880.0,0.51466466]
[1748482045948,0.70708251,107890.0,107880.0,0.52109614]
[1748482046192,0.70708251,107890.0,107880.0,0.52976466]
[1748482046400,0.70708251,107890.0,107880.0,0.52109614]
[1748482046641,0.70708251,107890.0,107880.0,0.50599614]
[1748482046883,0.70708251,107890.0,107880.0,0.53046535]
[1748482047152,0.70708251,107890.0,107880.0,0.52179614]
[1748482047389,0.77813646,107890.0,107880.0,0.41395614]
[1748482047610,0.68708251,107890.0,107880.0,0.51466496]
[1748482047824,0.68708251,107890.0,107880.0,0.50599614]
[1748482048507,0.68708251,107890.0,107880.0,0.52109614]
[1748482048919,0.68708251,107890.0,107880.0,0.52976507]
[1748482049357,0.68708251,107890.0,107880.0,0.52976512]
[1748482049573,0.68708251,107890.0,107880.0,0.52109614]
[1748482049807,0.68708251,107890.0,107880.0,0.52976511]
[1748482050018,0.68708251,107890.0,107880.0,0.52976512]
[1748482050479,0.68708251,107890.0,107880.0,0.12948512]
[1748482050952,0.68708251,107890.0,107880.0,0.12948548]
[1748482051177,0.39464251,107890.0,107880.0,0.12948548]
[1748482051396,0.68700251,107890.0,107880.0,0.14581614]
[1748482051607,0.68700251,107890.0,107880.0,0.1544853]
[1748482052049,0.68700251,107890.0,107880.0,0.15448521]
[1748482052659,0.68700251,107890.0,107880.0,0.15448394]
[1748482052867,0.68700251,107890.0,107880.0,0.14581614]
[1748482053079,0.68700251,107890.0,107880.0,0.15448248]
[1748482053488,0.68700251,107890.0,107880.0,0.15448037]
[1748482053691,0.68700251,107890.0,107880.0,0.14581614]
[1748482054003,0.68700251,107890.0,107880.0,0.15448023]
[1748482054427,0.82700251,107890.0,107880.0,0.15448023]
[1748482054924,0.82700251,107890.0,107880.0,0.15448018]
[1748482055344,0.82700251,107890.0,107880.0,0.15448021]
[1748482055547,0.82700251,107890.0,107880.0,0.15448023]
[1748482055700,0.82700251,107890.0,107880.0,0.14581614]
[1748482056118,0.82700251,107890.0,107880.0,0.15448018]
[1748482056306,0.82700251,107890.0,107880.0,0.14581614]
[1748482056906,0.82700251,107890.0,107880.0,0.13948014]
[1748482057150,0.82700251,107890.0,107880.0,0.13081614]
[1748482057536,0.82700251,107890.0,107880.0,0.13947991]
[1748482057735,0.82700251,107890.0,107880.0,0.13081614]
[1748482057936,0.82700251,107890.0,107880.0,0.13947889]
[1748482058139,0.82700251,107890.0,107880.0,0.13081614]
[1748482058796,0.82700251,107890.0,107880.0,0.13947893]
[1748482059037,0.94935646,107890.0,107880.0,0.01367614]
[1748482059255,0.96389731,107890.0,107880.0,0.10571614]
[1748482059971,0.96389731,107890.0,107880.0,0.11438067]
[1748482060178,0.96389731,107890.0,107880.0,0.10571614]
[1748482060602,0.96389731,107890.0,107880.0,0.11438062]
[1748482061028,0.96389731,107890.0,107880.0,0.02234011]
[1748482061237,0.96389731,107890.0,107880.0,0.11438011]
[1748482061450,0.94389731,107890.0,107880.0,0.10571614]
[1748482061873,0.95316583,107890.0,107880.0,0.11437987]
[1748482062086,0.92186583,107890.0,107880.0,0.11437987]
[1748482062720,0.92186583,107890.0,107880.0,0.10571614]
[1748482062941,0.92186583,107890.0,107880.0,0.11437758]
[1748482063171,0.92186583,107890.0,107880.0,0.10571614]
[1748482063390,0.92186583,107890.0,107880.0,0.11437781]
[1748482063607,0.92186583,107890.0,107880.0,0.10571614]
[1748482063827,0.92186583,107890.0,107880.0,0.11437801]
[1748482064035,0.92186583,107890.0,107880.0,0.1143809]
[1748482064934,0.92186583,107890.0,107880.0,0.11438099]
[1748482065589,0.90732498,107890.0,107880.0,0.11438108]
[1748482065807,0.81611103,107890.0,107880.0,0.55606108]
[1748482066690,0.81611103,107890.0,107880.0,0.55606038]
[1748482066914,0.81611103,107890.0,107880.0,0.55606039]
[1748482067809,0.81611103,107890.0,107880.0,0.55606044]
[1748482068026,0.81611103,107890.0,107880.0,0.55606043]
[1748482068219,0.81611103,107890.0,107880.0,0.55606049]
[1748482068410,0.81611103,107890.0,107880.0,0.54739614]
[1748482068639,0.19464251,107890.0,107880.0,0.54739614]
[1748482069093,0.48684251,107890.0,107880.0,0.55605892]
[1748482069309,0.48684251,107890.0,107880.0,0.55605921]
[1748482069731,0.46684251,107890.0,107880.0,0.55605921]
[1748482070180,0.46684251,107890.0,107880.0,0.54739614]
[1748482070391,0.46684251,107890.0,107880.0,0.55605978]
[1748482070600,0.46684251,107890.0,107880.0,0.55605877]
[1748482071708,0.46684251,107890.0,107880.0,0.55605804]
[1748482072620,0.46684251,107890.0,107880.0,0.55605758]
[1748482072829,0.46680251,107890.0,107880.0,0.55605744]
[1748482073698,0.46680251,107890.0,107880.0,0.55605647]
[1748482074136,0.46680251,107890.0,107880.0,0.54739614]
[1748482074351,0.46680251,107890.0,107880.0,0.55605643]
[1748482074846,0.46680251,107890.0,107880.0,0.55605548]
[1748482075731,0.46680251,107890.0,107880.0,0.55605502]
[1748482075944,0.46680251,107890.0,107880.0,0.55605505]
[1748482076145,0.46680251,107890.0,107880.0,0.55605506]
[1748482076564,0.46680251,107890.0,107880.0,0.55605479]
[1748482076853,0.44680251,107890.0,107880.0,0.55605471]
[1748482077298,0.44680251,107890.0,107880.0,0.55605456]
[1748482077510,0.44680251,107890.0,107880.0,0.55605463]
[1748482077727,0.44680251,107890.0,107880.0,0.55605466]
[1748482077862,0.44680251,107890.0,107880.0,0.54739614]
[1748482078080,0.44680251,107890.0,107880.0,0.55605456]
[1748482078276,0.15464251,107890.0,107880.0,0.55605459]
[1748482078496,0.44672251,107890.0,107880.0,0.55605446]
[1748482078912,0.15464251,107890.0,107880.0,0.55605446]
[1748482079181,0.44672251,107890.0,107880.0,0.55605446]
[1748482079387,0.44672251,107890.0,107880.0,0.55605445]
[1748482079727,0.44672251,107890.0,107880.0,0.55605435]
[1748482080361,0.44672251,107890.0,107880.0,0.55605263]
[1748482080764,0.44672251,107890.0,107880.0,0.89608699]
[1748482080972,0.44672251,107890.0,107880.0,0.8874305]
[1748482081374,0.15464251,107890.0,107880.0,0.8874305]
[1748482081600,0.44672251,107890.0,107880.0,0.8874305]
[1748482081999,0.44672251,107890.0,107880.0,0.54739614]
[1748482083811,0.42672251,107890.0,107880.0,0.54739614]
[1748482084232,0.13464251,107890.0,107880.0,0.54739614]
[1748482086792,0.13464251,107890.0,107880.0,0.90106114]
[1748482088342,0.13464251,107890.0,107880.0,0.56108945]
[1748482090931,0.11464251,107890.0,107880.0,0.56108945]
[1748482095487,0.12994251,107890.0,107880.0,0.43915614]
[1748482095698,0.12994251,107890.0,107880.0,0.52449462]
[1748482095914,0.12994251,107890.0,107880.0,0.51449462]
[1748482096125,0.22099646,107890.0,107880.0,0.51449462]
[1748482096631,0.22099646,107890.0,107880.0,0.51449661]
[1748482096830,0.23739646,107890.0,107880.0,0.51449658]
[1748482097270,0.23739646,107890.0,107880.0,0.51449548]
[1748482097916,0.21739646,107890.0,107880.0,0.51449548]
[1748482098407,0.21739646,107890.0,107880.0,0.50583614]
[1748482098813,0.21739646,107890.0,107880.0,0.41395614]
[1748482099023,0.50923646,107890.0,107880.0,0.41395614]
[1748482099240,0.50923646,107890.0,107880.0,0.50567614]
[1748482099457,0.50923646,107890.0,107880.0,0.51433558]
[1748482099678,0.50923646,107890.0,107880.0,0.51433533]
[1748482100089,0.50923646,107890.0,107880.0,0.42261533]
[1748482100294,0.50923646,107890.0,107880.0,0.51433503]
[1748482100908,0.84923646,107890.0,107880.0,0.51433433]
[1748482101316,0.84923646,107890.0,107880.0,0.51433436]
[1748482101556,0.84923646,107890.0,107880.0,0.51433428]
[1748482101909,0.84923646,107890.0,107880.0,0.51433316]
[1748482102362,0.84923646,107890.0,107880.0,0.50567614]
[1748482102530,0.84923646,107890.0,107880.0,0.51433299]
[1748482102909,0.84923646,107890.0,107880.0,0.50567614]
[1748482104250,0.84923646,107890.0,107880.0,0.51433205]
[1748482105075,0.82923646,107890.0,107880.0,0.51433205]
[1748482105865,0.82923646,107890.0,107880.0,0.51433148]
[1748482106293,0.41464251,107890.0,107880.0,0.55583148]
[1748482106491,0.70644251,107890.0,107880.0,0.55583148]
[1748482106694,0.36644251,107890.0,107880.0,0.55582993]
[1748482107096,0.36644251,107890.0,107880.0,0.55582984]
[1748482107372,0.36644251,107890.0,107880.0,0.54052984]
[1748482107714,0.36644251,107890.0,107880.0,0.54052979]
[1748482108513,0.36644251,107890.0,107880.0,0.54052907]
[1748482108741,0.36644251,107890.0,107880.0,0.55702907]
[1748482108742,0.07464251,107890.0,107880.0,0.55702907]
[1748482108994,0.07464251,107890.0,107880.0,0.89700076]
[1748482109144,0.07464251,107890.0,107880.0,0.87184783]
[1748482109344,0.07464251,107890.0,107880.0,0.51567614]
[1748482111996,0.05464251,107890.0,107880.0,0.51567614]
[1748482115594,0.05464251,107890.0,107880.0,0.51432988]
[1748482115797,0.05464251,107890.0,107880.0,0.52432989]
[1748482116387,0.05464251,107890.0,107880.0,0.52433041]
[1748482116563,0.05464251,107890.0,107880.0,0.5243304]
[1748482116983,0.05464251,107890.0,107880.0,0.51567614]
[1748482117188,0.05464251,107890.0,107880.0,0.52433035]
[1748482117646,0.05464251,107890.0,107880.0,0.42395614]
[1748482117863,0.05464251,107890.0,107880.0,0.52433067]
[1748482118072,0.05464251,107890.0,107880.0,0.52433056]
[1748482119017,0.05464251,107890.0,107880.0,0.51567614]
[1748482119223,0.00926852,107890.0,107880.0,0.52433112]
[1748482119409,0.00926852,107890.0,107880.0,0.52433114]
[1748482119710,0.00926852,107890.0,107880.0,0.52433108]
[1748482120051,0.19464251,107890.0,107880.0,0.52433108]
[1748482120258,0.19464251,107890.0,107880.0,0.5243316]
[1748482120968,0.19464251,107890.0,107880.0,0.5243317]
[1748482121210,0.19464251,107890.0,107880.0,0.52433166]
[1748482121407,0.19464251,107890.0,107880.0,0.52433163]
[1748482121612,0.19464251,107890.0,107880.0,0.51567614]
[1748482121836,0.19464251,107890.0,107880.0,0.5243314]
[1748482122039,0.19464251,107890.0,107880.0,0.52433148]
[1748482122489,0.19464251,107890.0,107880.0,0.51567614]
[1748482122710,0.19464251,107890.0,107880.0,0.52433194]
[1748482123335,0.19464251,107890.0,107880.0,0.52433193]
[1748482123544,0.19464251,107890.0,107880.0,0.51567614]
[1748482123793,0.19464251,107890.0,107880.0,0.52433129]
[1748482124025,0.19464251,107890.0,107880.0,0.52433174]
[1748482124239,0.19464251,107890.0,107880.0,0.52433171]
[1748482124872,0.19464251,107890.0,107880.0,0.52433248]
[1748482125300,0.19464251,107890.0,107880.0,0.5243321]
[1748482126164,0.19464251,107890.0,107880.0,0.432612]
[1748482126376,0.19464251,107890.0,107880.0,0.524332]
[1748482126783,0.17464251,107890.0,107880.0,0.524332]
[1748482126988,0.18391103,107890.0,107880.0,0.53167614]
[1748482127532,0.18391103,107890.0,107880.0,0.54033117]
[1748482127712,0.18391103,107890.0,107880.0,0.54033088]
[1748482127942,0.18391103,107890.0,107880.0,0.54033091]
[1748482129929,0.18391103,107890.0,107880.0,0.53167614]
[1748482130367,0.18391103,107890.0,107880.0,0.88684169]
[1748482130795,0.18391103,107890.0,107880.0,0.54677614]
[1748482133702,0.18391103,107890.0,107880.0,0.88684169]
[1748482133928,0.18391103,107890.0,107880.0,0.54677614]
[1748482134578,0.16391103,107890.0,107880.0,0.54677614]
[1748482136091,0.16391103,107890.0,107880.0,0.5381]
[1748482137510,0.16391103,107890.0,107880.0,0.5391]
[1748482140542,0.16391103,107890.0,107880.0,0.87916555]
[1748482141658,0.14391103,107890.0,107880.0,0.87916555]
[1748482146431,0.14391103,107890.0,107880.0,0.89280658]
[1748482148625,0.14391103,107890.0,107880.0,0.90146492]
[1748482148858,0.12391103,107890.0,107880.0,0.90146492]
[1748482149115,0.12391103,107890.0,107880.0,0.90146495]
[1748482149330,0.12391103,107890.0,107880.0,0.56139935]
[1748482149955,0.12391103,107890.0,107880.0,0.55274103]
[1748482150399,0.12391103,107890.0,107880.0,0.56139944]
[1748482150812,0.12391103,107890.0,107880.0,0.56139939]
[1748482151014,0.12391103,107890.0,107880.0,0.55274103]
[1748482151218,0.12391103,107890.0,107880.0,0.56139949]
[1748482151356,0.12391103,107890.0,107880.0,0.56139984]
[1748482151555,0.12391103,107890.0,107880.0,0.56140007]
[1748482152484,0.12391103,107890.0,107880.0,0.55274103]
[1748482152691,0.12391103,107890.0,107880.0,0.56140025]
[1748482152896,0.12391103,107890.0,107880.0,0.90146582]
[1748482153324,0.12391103,107890.0,107880.0,0.89280658]
[1748482153496,0.12391103,107890.0,107880.0,0.9014658]
[1748482153715,0.19464251,107890.0,107880.0,1.5278561]
[1748482153868,0.2039112,107890.0,107880.0,1.33319563]
[1748482154070,0.2039112,107890.0,107880.0,1.32392608]
[1748482154319,0.2039112,107890.0,107880.0,1.33869335]
[1748482154547,0.2039112,107890.0,107880.0,1.3479629]
[1748482155829,0.1839112,107890.0,107880.0,1.33319563]
[1748482156495,0.19317972,107890.0,107880.0,1.33319563]
[1748482156730,0.19317972,107890.0,107880.0,1.5185868]
[1748482156959,0.19317972,107890.0,107880.0,1.52785618]
[1748482157618,0.19317972,107890.0,107880.0,1.5185868]
[1748482158050,0.19317972,107890.0,107880.0,1.52785627]
[1748482158918,0.19317972,107890.0,107880.0,1.54262354]
[1748482159128,0.19317972,107890.0,107880.0,1.3479629]
[1748482159575,0.19317972,107890.0,107880.0,1.33319563]
[1748482159787,0.1839112,107890.0,107880.0,1.33319563]
[1748482160747,0.1839112,107890.0,107880.0,0.93499498]
[1748482160956,0.1839112,107890.0,107880.0,1.27506053]
[1748482161380,0.1839112,107890.0,107880.0,1.27502053]
[1748482162851,0.1639112,107890.0,107880.0,1.27502053]
[1748482163053,0.1639112,107890.0,107880.0,0.89214053]
[1748482163262,0.1639112,107890.0,107880.0,1.27462053]
[1748482163473,0.1639112,107890.0,107880.0,0.89214053]
[1748482163680,0.1639112,107890.0,107880.0,0.98346053]
[1748482167383,0.1639112,107890.0,107880.0,1.32352608]
[1748482170019,0.1439112,107890.0,107880.0,1.33218061]
[1748482170478,0.1439112,107890.0,107880.0,1.53611059]
[1748482170702,0.1439112,107890.0,107880.0,1.5361104]
[1748482171322,0.1439112,107890.0,107880.0,1.5274561]
[1748482171746,0.1439112,107890.0,107880.0,1.51818672]
[1748482172203,0.13464251,107890.0,107880.0,0.65205023]
[1748482172427,0.13464251,107890.0,107880.0,1.32352608]
[1748482172637,0.13464251,107890.0,107880.0,1.33218167]
[1748482172850,0.13464251,107890.0,107880.0,1.32352608]
[1748482173068,0.13464251,107890.0,107880.0,1.33218187]
[1748482173336,0.13464251,107890.0,107880.0,1.3321819]
[1748482174408,0.13464251,107890.0,107880.0,1.3321826]
[1748482174677,0.13464251,107890.0,107880.0,1.33279563]
[1748482174890,0.13464251,107890.0,107880.0,1.34145218]
[1748482175098,0.13464251,107890.0,107880.0,1.52684375]
[1748482175308,0.13464251,107890.0,107880.0,1.54538257]
[1748482175729,0.13464251,107890.0,107880.0,1.56014984]
[1748482175937,0.13464251,107890.0,107880.0,1.55149292]
[1748482176573,0.13464251,107890.0,107880.0,1.54222354]
[1748482176969,0.11464251,107890.0,107880.0,1.54222354]
[1748482177190,0.11464251,107890.0,107880.0,1.52745627]
[1748482177811,0.11464251,107890.0,107880.0,1.33279563]
[1748482178431,0.1239112,107890.0,107880.0,1.52745618]
[1748482178625,0.13317964,107890.0,107880.0,1.52745618]
[1748482178834,0.13317964,107890.0,107880.0,1.5181868]
[1748482179048,0.13317964,107890.0,107880.0,1.52684531]
[1748482179191,0.1239112,107890.0,107880.0,1.53295407]
[1748482179393,0.1239112,107890.0,107880.0,1.3475629]
[1748482179606,0.11464251,107890.0,107880.0,1.32352608]
[1748482180010,0.11464251,107890.0,107880.0,1.33829335]
[1748482180211,0.11464251,107890.0,107880.0,1.34695207]
[1748482180495,0.11464251,107890.0,107880.0,1.00688627]
[1748482181010,0.11464251,107890.0,107880.0,0.66682072]
[1748482181661,0.11464251,107890.0,107880.0,0.65172176]
[1748482181871,0.11464251,107890.0,107880.0,0.65172325]
[1748482182082,0.11464251,107890.0,107880.0,0.62829498]
[1748482182340,0.11464251,107890.0,107880.0,0.97702178]
[1748482183180,0.11464251,107890.0,107880.0,0.96836053]
[1748482183404,0.11464251,107890.0,107880.0,0.9770243]
[1748482183618,0.11464251,107890.0,107880.0,0.9831278]
[1748482183836,0.11464251,107890.0,107880.0,0.99179157]
[1748482184256,0.09464251,107890.0,107880.0,0.9923243]
[1748482184876,0.09464251,107890.0,107880.0,0.99232419]
[1748482185106,0.09464251,107890.0,107880.0,0.99232414]
[1748482185312,0.09464251,107890.0,107880.0,0.99232426]
[1748482185557,0.09464251,107890.0,107880.0,0.99232447]
[1748482185767,0.09464251,107890.0,107880.0,0.98366053]
[1748482185978,0.09464251,107890.0,107880.0,0.99232353]
[1748482186570,0.09464251,107890.0,107880.0,0.99232215]
[1748482187065,0.09464251,107890.0,107880.0,0.99232217]
[1748482187517,0.09464251,107890.0,107880.0,0.99232227]
[1748482187723,0.09464251,107890.0,107880.0,0.62695688]
[1748482187937,0.09464251,107890.0,107880.0,0.52990293]
[1748482188142,0.09464251,107890.0,107880.0,0.90236848]
[1748482188558,0.09464251,107890.0,107880.0,0.90236838]
[1748482188763,0.09464251,107890.0,107880.0,0.90236834]
[1748482188964,0.09464251,107890.0,107880.0,0.90236845]
[1748482189172,0.09464251,107890.0,107880.0,0.91713548]
[1748482189352,0.09464251,107890.0,107880.0,0.91713514]
[1748482189751,0.09464251,107890.0,107880.0,0.91713547]
[1748482192702,0.07464251,107890.0,107880.0,0.91713562]
[1748482193935,0.07464251,107890.0,107880.0,0.91713577]
[1748482195427,0.07464251,107890.0,107880.0,0.91713593]
[1748482196026,0.07464251,107890.0,107880.0,0.91713599]
[1748482196168,0.07464251,107890.0,107880.0,0.90847385]
[1748482196361,0.07464251,107890.0,107880.0,0.91713607]
[1748482196592,0.07464251,107890.0,107880.0,1.25720161]
[1748482196800,0.07464251,107890.0,107880.0,1.25720162]
[1748482197617,0.07464251,107890.0,107880.0,1.25720166]
[1748482197821,0.07464251,107890.0,107880.0,0.91713611]
[1748482198206,0.05464251,107890.0,107880.0,0.90236884]
[1748482199352,0.05464251,107890.0,107880.0,0.90236892]
[1748482199694,0.05464251,107890.0,107880.0,0.90236891]
[1748482200383,0.05464251,107890.0,107880.0,1.80943958]
[1748482200601,0.0639112,107890.0,107880.0,1.82797855]
[1748482200829,0.0639112,107890.0,107880.0,1.633318]
[1748482201482,0.0639112,107890.0,107880.0,1.81870908]
[1748482201629,0.0639112,107890.0,107880.0,1.63331791]
[1748482202038,0.0639112,107890.0,107880.0,1.64808518]
[1748482202247,0.0639112,107890.0,107880.0,1.64808523]
[1748482202912,0.0639112,107890.0,107880.0,1.64808524]
[1748482203216,0.0639112,107890.0,107880.0,1.64808522]
[1748482203630,0.0639112,107890.0,107880.0,1.29875012]
[1748482203846,0.0639112,107890.0,107880.0,1.29871011]
[1748482204069,0.0639112,107890.0,107880.0,1.29871006]
[1748482204277,0.0639112,107890.0,107880.0,1.2900478]
[1748482204656,0.0639112,107890.0,107880.0,1.29871008]
[1748482205441,0.19464268,107890.0,107880.0,1.29871008]
[1748482205861,0.19464268,107890.0,107880.0,1.29871068]
[1748482206348,0.19464268,107890.0,107880.0,1.25154403]
[1748482206567,0.19464268,107890.0,107880.0,1.26764403]
[1748482206774,0.19464268,107890.0,107880.0,1.26764521]
[1748482206976,0.19464268,107890.0,107880.0,1.25154521]
[1748482207627,0.19464268,107890.0,107880.0,1.25154545]
[1748482207849,0.19464268,107890.0,107880.0,1.26774545]
[1748482208276,0.19464268,107890.0,107880.0,1.28251272]
[1748482208718,0.19464268,107890.0,107880.0,1.63757776]
[1748482208931,0.19464268,107890.0,107880.0,1.62891335]
[1748482209972,0.19464268,107890.0,107880.0,1.6381829]
[1748482210988,0.19464268,107890.0,107880.0,1.62891335]
[1748482211630,0.19464268,107890.0,107880.0,0.94878225]
[1748482211831,0.19464268,107890.0,107880.0,1.62891335]
[1748482212285,0.19464268,107890.0,107880.0,1.63757961]
[1748482212467,0.17464268,107890.0,107880.0,1.63757961]
[1748482212880,0.18391137,107890.0,107880.0,1.63757988]
[1748482213284,0.18391137,107890.0,107880.0,1.63757991]
[1748482213416,0.18391137,107890.0,107880.0,1.62891335]
[1748482213613,0.18391137,107890.0,107880.0,1.63758002]
[1748482214561,0.18391137,107890.0,107880.0,1.62891335]
[1748482214762,0.18391137,107890.0,107880.0,1.63758043]
[1748482215302,0.18391137,107890.0,107880.0,1.62891335]
[1748482215502,0.18391137,107890.0,107880.0,1.63758107]
[1748482216115,0.18391137,107890.0,107880.0,1.29751552]
[1748482216537,0.18391137,107890.0,107880.0,1.2888478]
[1748482216732,0.18391137,107890.0,107880.0,1.29751588]
[1748482217141,0.18391137,107890.0,107880.0,1.30678606]
[1748482217305,0.18391137,107890.0,107880.0,1.84151225]
[1748482217509,0.18391137,107890.0,107880.0,1.84211284]
[1748482217707,0.18391137,107890.0,107880.0,1.84151239]
[1748482217870,0.18391137,107890.0,107880.0,1.84135239]
[1748482219130,0.18391137,107890.0,107880.0,1.84135101]
[1748482219331,0.18391137,107890.0,107880.0,1.64669037]
[1748482219553,0.16391137,107890.0,107880.0,1.64669037]
[1748482219752,0.16391137,107890.0,107880.0,1.84135042]
[1748482219954,0.16391137,107890.0,107880.0,1.83268345]
[1748482220204,0.16391137,107890.0,107880.0,1.83725848]
[1748482220412,0.16391137,107890.0,107880.0,1.83725849]
[1748482223933,0.20389206,107900.0,107890.0,0.48188717]
[1748482224140,0.19462465,107900.0,107890.0,0.65859349]
[1748482224352,0.19462465,107900.0,107890.0,0.67652803]
[1748482224542,0.19462465,107900.0,107890.0,0.4732195]
[1748482224965,0.19462465,107900.0,107890.0,0.48188518]
[1748482225166,0.19462465,107900.0,107890.0,0.23277963]
[1748482225384,0.19462465,107900.0,107890.0,0.83122518]
[1748482225506,0.19462465,107900.0,107890.0,0.5320795]
[1748482226162,0.19462465,107900.0,107890.0,0.55551159]
[1748482226366,0.19462465,107900.0,107890.0,0.54684677]
[1748482226566,0.17462465,107900.0,107890.0,0.54684677]
[1748482227148,0.19042465,107900.0,107890.0,0.10572727]
[1748482227346,0.20562465,107900.0,107890.0,0.11572727]
[1748482227549,0.20562465,107900.0,107890.0,0.46445798]
[1748482227973,0.20562465,107900.0,107890.0,0.44969071]
[1748482228369,0.20562465,107900.0,107890.0,0.44102555]
[1748482228586,0.20562465,107900.0,107890.0,0.4496904]
[1748482228967,0.19042465,107900.0,107890.0,0.44102555]
[1748482229187,0.19042465,107900.0,107890.0,0.4496901]
[1748482229429,0.19042465,107900.0,107890.0,0.44969017]
[1748482230465,0.19042465,107900.0,107890.0,0.44968994]
[1748482230641,0.19042465,107900.0,107890.0,0.44968993]
[1748482231291,0.19042465,107900.0,107890.0,0.44102555]
[1748482231751,0.19042465,107900.0,107890.0,0.10096]
[1748482232165,0.17462465,107900.0,107890.0,0.50978428]
[1748482233007,0.17462465,107900.0,107890.0,0.50978434]
[1748482233215,0.17462465,107900.0,107890.0,0.50112]
[1748482233443,0.17462465,107900.0,107890.0,0.50978542]
[1748482233695,0.15462465,107900.0,107890.0,0.50978542]
[1748482233919,0.15462465,107900.0,107890.0,0.50112]
[1748482234153,0.15462465,107900.0,107890.0,0.5097856]
[1748482234640,0.15462465,107900.0,107890.0,0.50978564]
[1748482234847,0.15462465,107900.0,107890.0,0.50112]
[1748482235053,0.15462465,107900.0,107890.0,0.50978545]
[1748482235727,0.15462465,107900.0,107890.0,0.50978532]
[1748482235959,0.15462465,107900.0,107890.0,0.86515087]
[1748482236166,0.15462465,107900.0,107890.0,0.85648555]
[1748482236376,0.15462465,107900.0,107890.0,0.86515053]
[1748482236802,0.15462465,107900.0,107890.0,0.84985052]
[1748482237026,0.15462465,107900.0,107890.0,0.84985055]
[1748482237937,0.15462465,107900.0,107890.0,0.509785]
[1748482238160,0.15462465,107900.0,107890.0,0.84985055]
[1748482238378,0.15462465,107900.0,107890.0,0.84985081]
[1748482238803,0.15462465,107900.0,107890.0,0.84985088]
[1748482239019,0.15462465,107900.0,107890.0,0.84985089]
[1748482239267,0.15462465,107900.0,107890.0,0.84985073]
[1748482239778,0.15462465,107900.0,107890.0,0.84118555]
[1748482239999,0.15462465,107900.0,107890.0,0.84985058]
[1748482240207,0.15462465,107900.0,107890.0,0.84985055]
[1748482240588,0.15462465,107900.0,107890.0,1.06662454]
[1748482240813,0.13462465,107900.0,107890.0,1.16694718]
[1748482241185,0.13462465,107900.0,107890.0,1.1675507]
[1748482241392,0.13462465,107900.0,107890.0,1.15828218]
[1748482241601,0.13462465,107900.0,107890.0,1.17621487]
[1748482242014,0.13462465,107900.0,107890.0,1.17621423]
[1748482242187,0.13462465,107900.0,107890.0,1.16755062]
[1748482242560,0.13462465,107900.0,107890.0,1.17621391]
[1748482242798,0.13462465,107900.0,107890.0,1.17621367]
[1748482243711,0.15316007,107900.0,107890.0,1.18548194]
[1748482243932,0.15316007,107900.0,107890.0,1.17681889]
[1748482244399,0.15316007,107900.0,107890.0,1.18548048]
[1748482244671,0.15316007,107900.0,107890.0,1.17681897]
[1748482244887,0.15316007,107900.0,107890.0,1.18548075]
[1748482245092,0.15316007,107900.0,107890.0,1.16755062]
[1748482245297,0.15316007,107900.0,107890.0,1.17621218]
[1748482245512,0.15316007,107900.0,107890.0,1.176212]
[1748482245749,0.14389249,107900.0,107890.0,1.16694356]
[1748482245963,0.14389249,107900.0,107890.0,1.16694374]
[1748482246383,0.14389249,107900.0,107890.0,1.16694391]
[1748482246687,0.14389249,107900.0,107890.0,1.16694394]
[1748482246931,0.14389249,107900.0,107890.0,1.16694393]
[1748482247493,0.14389249,107900.0,107890.0,1.16694442]
[1748482247896,0.12389249,107900.0,107890.0,1.16694442]
[1748482248067,0.12389249,107900.0,107890.0,1.17621303]
[1748482248268,0.12389249,107900.0,107890.0,1.17621613]
[1748482249139,0.12389249,107900.0,107890.0,1.17621664]
[1748482249355,0.12389249,107900.0,107890.0,1.17621714]
[1748482250037,0.11462465,107900.0,107890.0,0.97230515]
[1748482250250,0.11462465,107900.0,107890.0,0.97230518]
[1748482250692,0.11462465,107900.0,107890.0,0.97230478]
[1748482251345,0.11462465,107900.0,107890.0,0.9636395]
[1748482251791,0.11462465,107900.0,107890.0,0.97230365]
[1748482252741,0.11462465,107900.0,107890.0,0.9636395]
[1748482252965,0.11462465,107900.0,107890.0,0.97230336]
[1748482253283,0.11462465,107900.0,107890.0,0.97230361]
[1748482253503,0.11462465,107900.0,107890.0,0.97230365]
[1748482253710,0.11462465,107900.0,107890.0,0.94090365]
[1748482254438,0.11462465,107900.0,107890.0,0.9322395]
[1748482254664,0.11462465,107900.0,107890.0,0.94090483]
[1748482254890,0.11462465,107900.0,107890.0,0.94090484]
[1748482255115,0.11462465,107900.0,107890.0,0.94090467]
[1748482255326,0.11462465,107900.0,107890.0,0.94090475]
[1748482255688,0.11462465,107900.0,107890.0,0.94090492]
[1748482255942,0.09462465,107900.0,107890.0,0.94090492]
[1748482256365,0.09462465,107900.0,107890.0,0.94090558]
[1748482256572,0.09462465,107900.0,107890.0,0.94090571]
[1748482256748,0.09462465,107900.0,107890.0,0.9322395]
[1748482257067,0.09462465,107900.0,107890.0,0.41882621]
[1748482257299,0.12522465,107900.0,107890.0,0.50958724]